[Event "Late-Titled-Tuesday-Blitz-February-13-2024"]
[Site "Chess.com"]
[Date "2024.02.13"]
[Round "1"]
[White "MarcoRiehle"]
[Black "Conejoviejo67"]
[Result "1-0"]
[WhiteElo "2857"]
[BlackElo "2454"]
[TimeControl "180+1"]
[EndTime "14:05:27 PST"]
[Termination "MarcoRiehle won by resignation"]

1. e4 {[%clk 0:02:57.7]} 1... e6 {[%clk 0:02:59.1]} 2. c4 {[%clk 0:02:57.3]}
2... d5 {[%clk 0:03:00]} 3. cxd5 {[%clk 0:02:58.2]} 3... exd5 {[%clk 0:03:00]}
4. Qb3 {[%clk 0:02:59.1]} 4... dxe4 {[%clk 0:02:57.8]} 5. Bc4 {[%clk 0:02:59]}
5... Qf6 {[%clk 0:02:51.4]} 6. Nc3 {[%clk 0:02:58.7]} 6... c6 {[%clk 0:02:49.3]}
7. Nxe4 {[%clk 0:02:58.2]} 7... Qg6 {[%clk 0:02:49.8]} 8. Ng3 {[%clk 0:02:56.9]}
8... b5 {[%clk 0:02:46.5]} 9. Bd3 {[%clk 0:02:54.6]} 9... Qe6+ {[%clk
0:02:44.5]} 10. Qxe6+ {[%clk 0:02:53.4]} 10... Bxe6 {[%clk 0:02:45.4]} 11. Nf3
{[%clk 0:02:54]} 11... Bd6 {[%clk 0:02:41.9]} 12. Ne4 {[%clk 0:02:52]} 12... Be7
{[%clk 0:02:36.7]} 13. O-O {[%clk 0:02:52.1]} 13... Nd7 {[%clk 0:02:31.3]} 14.
Nd4 {[%clk 0:02:47.6]} 14... Bd5 {[%clk 0:02:28.4]} 15. Nc3 {[%clk 0:02:47.5]}
15... b4 {[%clk 0:02:15.6]} 16. Nxd5 {[%clk 0:02:46.2]} 16... cxd5 {[%clk
0:02:16.5]} 17. Bb5 {[%clk 0:02:45.4]} 17... Nf6 {[%clk 0:02:14.8]} 18. Re1
{[%clk 0:02:44.5]} 18... Kf8 {[%clk 0:02:08.3]} 19. Nc6 {[%clk 0:02:40.7]} 19...
Bd6 {[%clk 0:02:05.6]} 20. d4 {[%clk 0:02:40.7]} 20... h6 {[%clk 0:02:00.3]} 21.
f3 {[%clk 0:02:37.5]} 21... g5 {[%clk 0:01:58]} 22. Bd2 {[%clk 0:02:34.5]} 22...
a6 {[%clk 0:01:53.3]} 23. Ba4 {[%clk 0:02:34.1]} 23... Nb6 {[%clk 0:01:50.8]}
24. Bb3 {[%clk 0:02:34.2]} 24... a5 {[%clk 0:01:50.2]} 25. Rac1 {[%clk
0:02:23.3]} 25... Kg7 {[%clk 0:01:41.3]} 26. Ne7 {[%clk 0:02:23.1]} 26... Bxe7
{[%clk 0:01:34.1]} 27. Rxe7 {[%clk 0:02:24]} 27... Rhe8 {[%clk 0:01:32]} 28.
Rcc7 {[%clk 0:02:22.3]} 28... Rxe7 {[%clk 0:01:30.2]} 29. Rxe7 {[%clk
0:02:23.2]} 29... Re8 {[%clk 0:01:29.6]} 30. Rxe8 {[%clk 0:02:22.2]} 30... Nxe8
{[%clk 0:01:30.5]} 31. Kf2 {[%clk 0:02:20.4]} 31... Nd6 {[%clk 0:01:30.3]} 32.
Ke2 {[%clk 0:02:20.7]} 32... Kf6 {[%clk 0:01:29.3]} 33. Kd3 {[%clk 0:02:19.1]}
33... Nbc4 {[%clk 0:01:22.7]} 34. Bc1 {[%clk 0:02:18.6]} 34... Ke6 {[%clk
0:01:21.1]} 35. a3 {[%clk 0:02:14.5]} 35... bxa3 {[%clk 0:01:19.9]} 36. bxa3
{[%clk 0:02:15.4]} 36... Nb6 {[%clk 0:01:18.4]} 37. a4 {[%clk 0:02:12.5]} 37...
Nf5 {[%clk 0:01:13.5]} 38. Bd2 {[%clk 0:02:08.7]} 38... Nh4 {[%clk 0:01:11.8]}
39. Bxa5 {[%clk 0:02:08.8]} 39... Nd7 {[%clk 0:01:11.3]} 40. Bc7 {[%clk
0:02:08.2]} 40... Nxg2 {[%clk 0:01:10.6]} 41. a5 {[%clk 0:02:08.8]} 41... Nf6
{[%clk 0:01:06.2]} 42. a6 {[%clk 0:02:06.5]} 42... Ne8 {[%clk 0:01:05.8]} 43.
Bb8 {[%clk 0:02:03.5]} 43... Nf4+ {[%clk 0:01:03.9]} 44. Kd2 {[%clk 0:02:00.3]}
44... Kd7 {[%clk 0:00:54.4]} 45. a7 {[%clk 0:01:59.7]} 1-0

[Event "Late-Titled-Tuesday-Blitz-February-13-2024"]
[Site "Chess.com"]
[Date "2024.02.13"]
[Round "1"]
[White "MeisterJabo"]
[Black "ChessSkool"]
[Result "0-1"]
[WhiteElo "2373"]
[BlackElo "2715"]
[TimeControl "180+1"]
[EndTime "14:05:27 PST"]
[Termination "ChessSkool won by resignation"]

1. c4 {[%clk 0:03:00.9]} 1... e6 {[%clk 0:02:59.4]} 2. Nf3 {[%clk 0:03:00.5]}
2... d5 {[%clk 0:03:00.3]} 3. g3 {[%clk 0:03:01.1]} 3... Nf6 {[%clk 0:03:00.1]}
4. Bg2 {[%clk 0:03:01.6]} 4... Be7 {[%clk 0:02:59]} 5. O-O {[%clk 0:03:01.7]}
5... O-O {[%clk 0:02:59.6]} 6. d4 {[%clk 0:03:01.1]} 6... dxc4 {[%clk
0:02:55.8]} 7. Ne5 {[%clk 0:03:01.2]} 7... Nc6 {[%clk 0:02:54.6]} 8. Nxc6 {[%clk
0:03:00.4]} 8... bxc6 {[%clk 0:02:54.6]} 9. Na3 {[%clk 0:03:01.1]} 9... Bxa3
{[%clk 0:02:51]} 10. bxa3 {[%clk 0:03:02]} 10... Rb8 {[%clk 0:02:42.6]} 11. Bxc6
{[%clk 0:02:48.4]} 11... Nd5 {[%clk 0:02:36.2]} 12. Qa4 {[%clk 0:02:11.8]} 12...
Rb6 {[%clk 0:02:34.8]} 13. Qxc4 {[%clk 0:02:02.3]} 13... Ba6 {[%clk 0:02:34.4]}
14. Qc2 {[%clk 0:02:02.5]} 14... Bxe2 {[%clk 0:02:32.6]} 15. Qxe2 {[%clk
0:01:57]} 15... Rxc6 {[%clk 0:02:32.2]} 16. Bd2 {[%clk 0:01:54.9]} 16... Qd6
{[%clk 0:02:27.9]} 17. Qf3 {[%clk 0:01:42.3]} 17... Ra6 {[%clk 0:02:23.8]} 18.
Qg4 {[%clk 0:01:12.4]} 18... Nf6 {[%clk 0:02:11.7]} 19. Qh4 {[%clk 0:01:12.9]}
19... Rxa3 {[%clk 0:02:04.1]} 20. Rab1 {[%clk 0:01:08.6]} 20... Ra4 {[%clk
0:02:03]} 21. Be3 {[%clk 0:00:43.7]} 21... Nd5 {[%clk 0:01:55.4]} 22. Rfc1
{[%clk 0:00:36.4]} 22... Nxe3 {[%clk 0:01:51.7]} 23. fxe3 {[%clk 0:00:37.3]}
23... Rxa2 {[%clk 0:01:50.5]} 24. Qf4 {[%clk 0:00:35.4]} 24... Qd5 {[%clk
0:01:47.7]} 25. e4 {[%clk 0:00:28.9]} 25... Qxd4+ {[%clk 0:01:47.4]} 26. Kh1
{[%clk 0:00:29.5]} 26... e5 {[%clk 0:01:38]} 0-1

[Event "Late-Titled-Tuesday-Blitz-February-13-2024"]
[Site "Chess.com"]
[Date "2024.02.13"]
[Round "1"]
[White "Abduzhaparov"]
[Black "A-Fier"]
[Result "0-1"]
[WhiteElo "2396"]
[BlackElo "2753"]
[TimeControl "180+1"]
[EndTime "14:05:28 PST"]
[Termination "A-Fier won by checkmate"]

1. Nf3 {[%clk 0:03:00.9]} 1... Nf6 {[%clk 0:02:59.7]} 2. c4 {[%clk 0:03:01.8]}
2... g6 {[%clk 0:02:59.9]} 3. Nc3 {[%clk 0:03:01.5]} 3... Bg7 {[%clk 0:03:00.6]}
4. e4 {[%clk 0:03:01.7]} 4... O-O {[%clk 0:03:01.5]} 5. d4 {[%clk 0:03:02.4]}
5... d6 {[%clk 0:03:01.8]} 6. Be3 {[%clk 0:03:03.3]} 6... Bg4 {[%clk 0:02:59.8]}
7. Qb3 {[%clk 0:03:02.4]} 7... Qc8 {[%clk 0:02:59.1]} 8. Be2 {[%clk 0:03:01.7]}
8... Bxf3 {[%clk 0:02:59.2]} 9. gxf3 {[%clk 0:03:01.5]} 9... Nfd7 {[%clk
0:02:59.3]} 10. f4 {[%clk 0:03:00.6]} 10... c5 {[%clk 0:02:59.6]} 11. d5 {[%clk
0:03:00.4]} 11... a6 {[%clk 0:02:59.5]} 12. a4 {[%clk 0:02:59.1]} 12... e6
{[%clk 0:02:58.7]} 13. h4 {[%clk 0:02:58.6]} 13... exd5 {[%clk 0:02:58.7]} 14.
cxd5 {[%clk 0:02:59.5]} 14... Re8 {[%clk 0:02:55.8]} 15. h5 {[%clk 0:02:57]}
15... Nf6 {[%clk 0:02:55.8]} 16. hxg6 {[%clk 0:02:48.8]} 16... hxg6 {[%clk
0:02:56.1]} 17. e5 {[%clk 0:02:46.6]} 17... dxe5 {[%clk 0:02:55.6]} 18. fxe5
{[%clk 0:02:47.5]} 18... Rxe5 {[%clk 0:02:55.4]} 19. O-O-O {[%clk 0:02:43.8]}
19... Rxe3 {[%clk 0:02:53.4]} 20. fxe3 {[%clk 0:02:42.3]} 20... Nbd7 {[%clk
0:02:54.1]} 21. e4 {[%clk 0:02:39.1]} 21... Ne5 {[%clk 0:02:54.2]} 22. Rdf1
{[%clk 0:02:24.3]} 22... c4 {[%clk 0:02:54.1]} 23. Qb6 {[%clk 0:02:23.8]} 23...
Nfd7 {[%clk 0:02:51.4]} 24. Qe3 {[%clk 0:01:35.8]} 24... b5 {[%clk 0:02:49.3]}
25. Qh3 {[%clk 0:01:30.2]} 25... b4 {[%clk 0:02:46.6]} 26. Nd1 {[%clk
0:00:57.8]} 26... Nd3+ {[%clk 0:02:36.5]} 27. Bxd3 {[%clk 0:00:47]} 27... cxd3+
{[%clk 0:02:36.3]} 28. Kb1 {[%clk 0:00:47.9]} 28... Qc2+ {[%clk 0:02:35.7]} 29.
Ka1 {[%clk 0:00:44.5]} 29... Qxa4+ {[%clk 0:02:35.6]} 30. Kb1 {[%clk 0:00:44.5]}
30... Qc2+ {[%clk 0:02:36.5]} 31. Ka1 {[%clk 0:00:44.4]} 31... Rc8 {[%clk
0:02:22.7]} 32. Qh7+ {[%clk 0:00:35.2]} 32... Kf8 {[%clk 0:02:22.7]} 33. Rxf7+
{[%clk 0:00:36.1]} 33... Kxf7 {[%clk 0:02:22.9]} 34. Rf1+ {[%clk 0:00:36.1]}
34... Nf6 {[%clk 0:02:23.3]} 35. Ne3 {[%clk 0:00:28.5]} 35... Qe2 {[%clk
0:02:01.6]} 36. Rxf6+ {[%clk 0:00:18]} 36... Kxf6 {[%clk 0:02:01.8]} 37. Qh4+
{[%clk 0:00:18.3]} 37... Kf7 {[%clk 0:02:01.9]} 38. Qf4+ {[%clk 0:00:16.4]}
38... Kg8 {[%clk 0:02:02.2]} 39. Ng4 {[%clk 0:00:10.8]} 39... Qxb2# {[%clk
0:02:02.2]} 0-1

[Event "Late-Titled-Tuesday-Blitz-February-13-2024"]
[Site "Chess.com"]
[Date "2024.02.13"]
[Round "1"]
[White "Noki102"]
[Black "Alina_Gumerovna"]
[Result "1-0"]
[WhiteElo "2542"]
[BlackElo "2065"]
[TimeControl "180+1"]
[EndTime "14:05:32 PST"]
[Termination "Noki102 won on time"]

1. d4 {[%clk 0:03:00.9]} 1... Nf6 {[%clk 0:02:59.7]} 2. Nc3 {[%clk 0:03:00.6]}
2... g6 {[%clk 0:02:59.4]} 3. e4 {[%clk 0:03:01]} 3... d6 {[%clk 0:02:59.3]} 4.
Bf4 {[%clk 0:02:59.9]} 4... Bg7 {[%clk 0:02:59.6]} 5. Qd2 {[%clk 0:02:59.4]}
5... O-O {[%clk 0:02:56.7]} 6. O-O-O {[%clk 0:02:59.2]} 6... Nc6 {[%clk
0:02:54]} 7. f3 {[%clk 0:02:56.6]} 7... e5 {[%clk 0:02:51.7]} 8. dxe5 {[%clk
0:02:55.6]} 8... dxe5 {[%clk 0:02:52.6]} 9. Qxd8 {[%clk 0:02:54.9]} 9... Rxd8
{[%clk 0:02:52]} 10. Rxd8+ {[%clk 0:02:54.9]} 10... Nxd8 {[%clk 0:02:52.7]} 11.
Bxe5 {[%clk 0:02:55]} 11... Ne6 {[%clk 0:02:48.7]} 12. Bg3 {[%clk 0:02:51.9]}
12... c6 {[%clk 0:02:47.7]} 13. Bc4 {[%clk 0:02:50.8]} 13... b5 {[%clk
0:02:46.5]} 14. Bb3 {[%clk 0:02:51.2]} 14... a5 {[%clk 0:02:46.7]} 15. a4 {[%clk
0:02:50.5]} 15... b4 {[%clk 0:02:43.5]} 16. Nb1 {[%clk 0:02:48]} 16... Nd4
{[%clk 0:02:36.6]} 17. Nd2 {[%clk 0:02:38.9]} 17... Bh6 {[%clk 0:01:32.9]} 18.
f4 {[%clk 0:02:28.8]} 18... Nh5 {[%clk 0:00:35]} 19. Nh3 {[%clk 0:02:16.9]}
19... Nxg3 {[%clk 0:00:05.2]} 20. hxg3 {[%clk 0:02:15.9]} 20... Ne2+ {[%clk
0:00:05.7]} 21. Kb1 {[%clk 0:02:12.1]} 21... Nxg3 {[%clk 0:00:06.6]} 22. Rd1
{[%clk 0:01:58.2]} 22... Bg4 {[%clk 0:00:06.1]} 23. Nf3 {[%clk 0:01:56.3]} 23...
Bxh3 {[%clk 0:00:03.5]} 24. gxh3 {[%clk 0:01:55.5]} 24... Bxf4 {[%clk
0:00:03.5]} 25. Rd7 {[%clk 0:01:51.5]} 25... Rf8 {[%clk 0:00:02.2]} 26. Nd4
{[%clk 0:01:45.9]} 26... Nxe4 {[%clk 0:00:01.2]} 27. Nxc6 {[%clk 0:01:41.9]} 1-0

[Event "Late-Titled-Tuesday-Blitz-February-13-2024"]
[Site "Chess.com"]
[Date "2024.02.13"]
[Round "1"]
[White "Rashad_Zeynalli"]
[Black "NCchamp"]
[Result "1-0"]
[WhiteElo "2662"]
[BlackElo "2317"]
[TimeControl "180+1"]
[EndTime "14:05:44 PST"]
[Termination "Rashad_Zeynalli won by resignation"]

1. e4 {[%clk 0:03:00.9]} 1... c6 {[%clk 0:02:56.7]} 2. d4 {[%clk 0:02:59.1]}
2... d5 {[%clk 0:02:57.6]} 3. e5 {[%clk 0:02:59.5]} 3... Bf5 {[%clk 0:02:57]} 4.
h4 {[%clk 0:02:59.8]} 4... h5 {[%clk 0:02:56.8]} 5. Bd3 {[%clk 0:02:59.7]} 5...
Bxd3 {[%clk 0:02:56]} 6. Qxd3 {[%clk 0:03:00.6]} 6... Qa5+ {[%clk 0:02:55.5]} 7.
b4 {[%clk 0:03:00]} 7... Qxb4+ {[%clk 0:02:55.9]} 8. Nd2 {[%clk 0:02:59.9]} 8...
e6 {[%clk 0:02:55.5]} 9. Rb1 {[%clk 0:02:59.1]} 9... Qe7 {[%clk 0:02:55.2]} 10.
c4 {[%clk 0:02:48.1]} 10... Qc7 {[%clk 0:02:55.4]} 11. Ngf3 {[%clk 0:02:40.7]}
11... Nd7 {[%clk 0:02:53.9]} 12. O-O {[%clk 0:02:35.2]} 12... Ne7 {[%clk
0:02:51.5]} 13. Ba3 {[%clk 0:02:14.8]} 13... b6 {[%clk 0:02:37.8]} 14. Rfc1
{[%clk 0:01:59.7]} 14... Qb7 {[%clk 0:02:37.6]} 15. Ng5 {[%clk 0:01:51.4]} 15...
Nf5 {[%clk 0:02:29]} 16. cxd5 {[%clk 0:01:35.3]} 16... cxd5 {[%clk 0:02:28]} 17.
Ndf3 {[%clk 0:01:17.6]} 17... Be7 {[%clk 0:02:04.3]} 18. Bxe7 {[%clk 0:01:15.4]}
18... Nxe7 {[%clk 0:02:05.2]} 19. Rc3 {[%clk 0:01:04.8]} 19... g6 {[%clk
0:01:40.8]} 20. Rbc1 {[%clk 0:01:03.7]} 20... Rc8 {[%clk 0:01:37.3]} 21. Rxc8+
{[%clk 0:00:48.3]} 21... Nxc8 {[%clk 0:01:38.2]} 22. Nxe6 {[%clk 0:00:48]} 22...
fxe6 {[%clk 0:01:29.4]} 23. Qxg6+ {[%clk 0:00:47.6]} 23... Kd8 {[%clk
0:01:29.9]} 24. Ng5 {[%clk 0:00:44]} 24... Re8 {[%clk 0:01:17.5]} 25. Nf7+
{[%clk 0:00:30.1]} 25... Ke7 {[%clk 0:01:17.1]} 26. Nd6 {[%clk 0:00:30.7]} 26...
Nxd6 {[%clk 0:01:08.5]} 27. exd6+ {[%clk 0:00:31.6]} 27... Kd8 {[%clk
0:01:08.5]} 28. Qg5+ {[%clk 0:00:30]} 28... Nf6 {[%clk 0:01:06.4]} 29. Qxf6+
{[%clk 0:00:30.4]} 29... Kd7 {[%clk 0:01:07.3]} 30. Qf7+ {[%clk 0:00:28.8]} 1-0

[Event "Late-Titled-Tuesday-Blitz-February-13-2024"]
[Site "Chess.com"]
[Date "2024.02.13"]
[Round "1"]
[White "Artemiki"]
[Black "mbojan"]
[Result "0-1"]
[WhiteElo "2447"]
[BlackElo "2848"]
[TimeControl "180+1"]
[EndTime "14:05:47 PST"]
[Termination "mbojan won on time"]

1. e4 {[%clk 0:02:59.4]} 1... a6 {[%clk 0:02:59.8]} 2. a4 {[%clk 0:02:56.1]}
2... e6 {[%clk 0:02:59.4]} 3. d4 {[%clk 0:02:55.1]} 3... d5 {[%clk 0:03:00]} 4.
Nc3 {[%clk 0:02:52.8]} 4... Bb4 {[%clk 0:02:58]} 5. e5 {[%clk 0:02:47.4]} 5...
c5 {[%clk 0:02:58.1]} 6. Nf3 {[%clk 0:02:42.7]} 6... Nc6 {[%clk 0:02:56.9]} 7.
Be3 {[%clk 0:02:34.8]} 7... cxd4 {[%clk 0:02:57]} 8. Bxd4 {[%clk 0:02:19]} 8...
Nge7 {[%clk 0:02:56.7]} 9. Bd3 {[%clk 0:02:16.9]} 9... Nxd4 {[%clk 0:02:54.1]}
10. Nxd4 {[%clk 0:02:14.3]} 10... Qc7 {[%clk 0:02:54]} 11. O-O {[%clk
0:01:17.3]} 11... Qxe5 {[%clk 0:02:49]} 12. Re1 {[%clk 0:01:17.9]} 12... Qc7
{[%clk 0:02:48.7]} 13. Qg4 {[%clk 0:01:13.3]} 13... Bxc3 {[%clk 0:02:21.7]} 14.
bxc3 {[%clk 0:01:09.7]} 14... O-O {[%clk 0:01:56.2]} 15. Nf3 {[%clk 0:00:11]}
15... h6 {[%clk 0:01:49]} 16. Qh5 {[%clk 0:00:09.7]} 16... f6 {[%clk 0:01:40.4]}
17. Re2 {[%clk 0:00:07.9]} 17... e5 {[%clk 0:01:40.4]} 18. Re3 {[%clk
0:00:02.6]} 18... e4 {[%clk 0:01:38.4]} 19. Nh4 {[%clk 0:00:01.2]} 19... exd3
{[%clk 0:01:37.5]} 20. cxd3 {[%clk 0:00:01.8]} 20... Nc6 {[%clk 0:01:22.6]} 21.
Rae1 {[%clk 0:00:01.7]} 21... Qf7 {[%clk 0:01:22.6]} 0-1

[Event "Late-Titled-Tuesday-Blitz-February-13-2024"]
[Site "Chess.com"]
[Date "2024.02.13"]
[Round "1"]
[White "IMRosen"]
[Black "fks_stal_mielec"]
[Result "1-0"]
[WhiteElo "2635"]
[BlackElo "2291"]
[TimeControl "180+1"]
[EndTime "14:05:50 PST"]
[Termination "IMRosen won by resignation"]

1. d4 {[%clk 0:02:59.9]} 1... c5 {[%clk 0:02:57.9]} 2. d5 {[%clk 0:02:58.9]}
2... e5 {[%clk 0:02:56.4]} 3. Nc3 {[%clk 0:02:56.8]} 3... d6 {[%clk 0:02:55.6]}
4. e4 {[%clk 0:02:56.9]} 4... f5 {[%clk 0:02:54.8]} 5. exf5 {[%clk 0:02:56.6]}
5... Bxf5 {[%clk 0:02:54.1]} 6. Bb5+ {[%clk 0:02:54.9]} 6... Nd7 {[%clk
0:02:53]} 7. Nge2 {[%clk 0:02:54.6]} 7... Nf6 {[%clk 0:02:52.4]} 8. Ng3 {[%clk
0:02:52.5]} 8... Bg6 {[%clk 0:02:50.6]} 9. a4 {[%clk 0:02:51.5]} 9... Be7 {[%clk
0:02:50.2]} 10. O-O {[%clk 0:02:50.6]} 10... O-O {[%clk 0:02:48.6]} 11. Be2
{[%clk 0:02:51.2]} 11... Kh8 {[%clk 0:02:24.3]} 12. Be3 {[%clk 0:02:50.7]} 12...
Nb6 {[%clk 0:02:17.7]} 13. a5 {[%clk 0:02:47.9]} 13... Nbd7 {[%clk 0:02:16.2]}
14. Qd2 {[%clk 0:02:48.2]} 14... Kg8 {[%clk 0:01:55]} 15. Ra4 {[%clk 0:02:46.2]}
15... Kh8 {[%clk 0:01:51.9]} 16. Rfa1 {[%clk 0:02:45.3]} 16... a6 {[%clk
0:01:42.4]} 17. h3 {[%clk 0:02:44]} 17... Qc7 {[%clk 0:01:39.6]} 18. Bd3 {[%clk
0:02:31.1]} 18... Bxd3 {[%clk 0:01:38]} 19. Qxd3 {[%clk 0:02:32]} 19... Qd8
{[%clk 0:01:33.5]} 20. Nf5 {[%clk 0:02:30.6]} 20... g6 {[%clk 0:01:26.6]} 21.
Nh6 {[%clk 0:02:22.6]} 21... Kg7 {[%clk 0:01:19.4]} 22. Ne2 {[%clk 0:01:48]}
22... e4 {[%clk 0:01:18.1]} 23. Qc3 {[%clk 0:01:40.2]} 23... c4 {[%clk
0:00:33.4]} 24. Nf4 {[%clk 0:01:30.7]} 24... Qc8 {[%clk 0:00:32]} 25. Ne6+
{[%clk 0:01:30.2]} 25... Kh8 {[%clk 0:00:31.7]} 26. Rxc4 {[%clk 0:01:29]} 26...
Qe8 {[%clk 0:00:29.7]} 27. Bd4 {[%clk 0:01:19.9]} 27... Ne5 {[%clk 0:00:17.7]}
28. Bxe5 {[%clk 0:01:18.7]} 28... dxe5 {[%clk 0:00:18.6]} 29. Qxe5 {[%clk
0:01:18.8]} 1-0

[Event "Late-Titled-Tuesday-Blitz-February-13-2024"]
[Site "Chess.com"]
[Date "2024.02.13"]
[Round "1"]
[White "dawid498"]
[Black "Defenstrator"]
[Result "1-0"]
[WhiteElo "2692"]
[BlackElo "2361"]
[TimeControl "180+1"]
[EndTime "14:05:52 PST"]
[Termination "dawid498 won by resignation"]

1. e4 {[%clk 0:03:00.9]} 1... e6 {[%clk 0:03:00]} 2. d4 {[%clk 0:03:00.2]} 2...
d5 {[%clk 0:02:57.8]} 3. e5 {[%clk 0:03:00.7]} 3... Qd7 {[%clk 0:02:56.4]} 4.
Nf3 {[%clk 0:02:53.1]} 4... b6 {[%clk 0:02:56.1]} 5. c3 {[%clk 0:02:40.6]} 5...
Ba6 {[%clk 0:02:55]} 6. Bxa6 {[%clk 0:02:41.1]} 6... Nxa6 {[%clk 0:02:53]} 7.
O-O {[%clk 0:02:39.6]} 7... c5 {[%clk 0:02:41]} 8. Qe2 {[%clk 0:02:31.1]} 8...
Nb8 {[%clk 0:02:39.6]} 9. a3 {[%clk 0:02:25.7]} 9... Nc6 {[%clk 0:02:24.6]} 10.
b4 {[%clk 0:02:25.5]} 10... cxd4 {[%clk 0:02:24.4]} 11. cxd4 {[%clk 0:02:26.4]}
11... Nh6 {[%clk 0:02:21.2]} 12. Bxh6 {[%clk 0:02:17.3]} 12... gxh6 {[%clk
0:02:20.7]} 13. Nbd2 {[%clk 0:02:03.9]} 13... Rg8 {[%clk 0:02:19.6]} 14. Rac1
{[%clk 0:01:52.5]} 14... Bg7 {[%clk 0:02:08]} 15. Qd3 {[%clk 0:01:46.9]} 15...
f6 {[%clk 0:01:47.4]} 16. Qxh7 {[%clk 0:01:36.2]} 16... Ne7 {[%clk 0:01:46.9]}
17. exf6 {[%clk 0:01:33.3]} 17... Bxf6 {[%clk 0:01:46.1]} 18. Qxh6 {[%clk
0:01:28.4]} 18... Rg6 {[%clk 0:01:38.2]} 19. Qh5 {[%clk 0:01:23.4]} 19... Kf7
{[%clk 0:01:34.5]} 20. Ne5+ {[%clk 0:01:19.1]} 20... Bxe5 {[%clk 0:01:33.5]} 21.
Qxe5 {[%clk 0:01:20]} 21... Rag8 {[%clk 0:01:22.4]} 22. g3 {[%clk 0:01:20.3]}
22... Nc6 {[%clk 0:01:11.4]} 23. Qe3 {[%clk 0:00:57.7]} 23... e5 {[%clk
0:01:05.3]} 24. Nf3 {[%clk 0:00:50.2]} 24... e4 {[%clk 0:00:53.7]} 25. Rxc6
{[%clk 0:00:47.7]} 25... exf3 {[%clk 0:00:45.3]} 26. Qf4+ {[%clk 0:00:46.7]}
26... Kg7 {[%clk 0:00:40.9]} 27. Rc7 {[%clk 0:00:46.9]} 1-0

[Event "Late-Titled-Tuesday-Blitz-February-13-2024"]
[Site "Chess.com"]
[Date "2024.02.13"]
[Round "1"]
[White "TheMagician"]
[Black "KamlaPasand"]
[Result "1/2-1/2"]
[WhiteElo "2198"]
[BlackElo "2552"]
[TimeControl "180+1"]
[EndTime "14:05:58 PST"]
[Termination "Game drawn by repetition"]

1. d4 {[%clk 0:02:57]} 1... d5 {[%clk 0:02:59.2]} 2. Nf3 {[%clk 0:02:56.1]} 2...
Nf6 {[%clk 0:02:58.9]} 3. c4 {[%clk 0:02:52.5]} 3... e6 {[%clk 0:02:58.6]} 4.
Nc3 {[%clk 0:02:49.7]} 4... Be7 {[%clk 0:02:58.5]} 5. Bg5 {[%clk 0:02:49.1]}
5... O-O {[%clk 0:02:58.4]} 6. e3 {[%clk 0:02:49.2]} 6... Nbd7 {[%clk
0:02:54.6]} 7. a3 {[%clk 0:02:48.9]} 7... dxc4 {[%clk 0:02:51.6]} 8. Bxc4 {[%clk
0:02:47.9]} 8... b6 {[%clk 0:02:52.2]} 9. Qe2 {[%clk 0:02:46]} 9... Bb7 {[%clk
0:02:52.7]} 10. Rd1 {[%clk 0:02:43.3]} 10... Nd5 {[%clk 0:02:48.8]} 11. Bxe7
{[%clk 0:02:38.8]} 11... Qxe7 {[%clk 0:02:47.6]} 12. Qc2 {[%clk 0:02:22.2]}
12... Rac8 {[%clk 0:02:39.1]} 13. Nxd5 {[%clk 0:02:17.6]} 13... Bxd5 {[%clk
0:02:35.2]} 14. Bxd5 {[%clk 0:02:14.8]} 14... exd5 {[%clk 0:02:34.7]} 15. Qa4
{[%clk 0:02:09.2]} 15... c5 {[%clk 0:02:31]} 16. Qxa7 {[%clk 0:02:02.7]} 16...
c4 {[%clk 0:02:25]} 17. Ne5 {[%clk 0:01:52.1]} 17... Rfd8 {[%clk 0:02:23.3]} 18.
Qb7 {[%clk 0:01:50.3]} 18... Qd6 {[%clk 0:02:22.7]} 19. Nxd7 {[%clk 0:01:41.6]}
19... Qxd7 {[%clk 0:02:22.5]} 20. Qxd7 {[%clk 0:01:41.4]} 20... Rxd7 {[%clk
0:02:23.4]} 21. Rc1 {[%clk 0:01:41.4]} 21... b5 {[%clk 0:02:21.4]} 22. Ke2
{[%clk 0:01:35.7]} 22... b4 {[%clk 0:02:21.3]} 23. axb4 {[%clk 0:01:35.3]} 23...
Rb7 {[%clk 0:02:21.6]} 24. b3 {[%clk 0:01:35.7]} 24... Rxb4 {[%clk 0:02:18.3]}
25. bxc4 {[%clk 0:01:35.9]} 25... dxc4 {[%clk 0:02:19.2]} 26. Rc2 {[%clk
0:01:36.2]} 26... Kf8 {[%clk 0:02:17.3]} 27. Rhc1 {[%clk 0:01:33.8]} 27... Ke7
{[%clk 0:02:16.9]} 28. e4 {[%clk 0:01:33.3]} 28... Ke6 {[%clk 0:02:16.9]} 29.
Ke3 {[%clk 0:01:32.9]} 29... f5 {[%clk 0:02:16.3]} 30. f3 {[%clk 0:01:32]} 30...
g5 {[%clk 0:02:14.9]} 31. g3 {[%clk 0:01:31.3]} 31... h5 {[%clk 0:02:14.7]} 32.
Rc3 {[%clk 0:01:29]} 32... g4 {[%clk 0:02:12.1]} 33. d5+ {[%clk 0:01:23.5]}
33... Kd6 {[%clk 0:02:09.2]} 34. fxg4 {[%clk 0:01:19.8]} 34... hxg4 {[%clk
0:02:07.9]} 35. Kd4 {[%clk 0:01:07]} 35... fxe4 {[%clk 0:02:07]} 36. Rxc4 {[%clk
0:01:04.2]} 36... Rbxc4+ {[%clk 0:01:50.9]} 37. Rxc4 {[%clk 0:01:03.7]} 37...
Rxc4+ {[%clk 0:01:51.3]} 38. Kxc4 {[%clk 0:01:04]} 38... Ke5 {[%clk 0:01:50]}
39. d6 {[%clk 0:00:54.3]} 39... Kxd6 {[%clk 0:01:48.9]} 40. Kd4 {[%clk
0:00:54.7]} 40... e3 {[%clk 0:01:48.9]} 41. Kxe3 {[%clk 0:00:54.8]} 41... Ke5
{[%clk 0:01:49.6]} 42. Kd3 {[%clk 0:00:54.7]} 42... Kd5 {[%clk 0:01:50]} 43. Ke3
{[%clk 0:00:54.8]} 43... Ke5 {[%clk 0:01:49.7]} 44. Kf2 {[%clk 0:00:54.9]} 44...
Kd4 {[%clk 0:01:48.2]} 45. h4 {[%clk 0:00:49.5]} 45... gxh3 {[%clk 0:01:47.3]}
46. Kg1 {[%clk 0:00:49.7]} 46... Ke5 {[%clk 0:01:46]} 47. Kh2 {[%clk 0:00:50.2]}
47... Kf5 {[%clk 0:01:46.6]} 48. Kxh3 {[%clk 0:00:51.1]} 48... Kg5 {[%clk
0:01:46.9]} 49. g4 {[%clk 0:00:51.1]} 49... Kg6 {[%clk 0:01:46.9]} 50. Kh4
{[%clk 0:00:52]} 50... Kh6 {[%clk 0:01:46.7]} 51. g5+ {[%clk 0:00:52.9]} 51...
Kg6 {[%clk 0:01:47.5]} 52. Kg4 {[%clk 0:00:53.7]} 52... Kg7 {[%clk 0:01:47.7]}
53. Kf5 {[%clk 0:00:54.6]} 53... Kf7 {[%clk 0:01:48.3]} 54. g6+ {[%clk
0:00:55.5]} 54... Kg7 {[%clk 0:01:48.9]} 55. Kg5 {[%clk 0:00:56.4]} 55... Kg8
{[%clk 0:01:44.7]} 56. Kg4 {[%clk 0:00:57.3]} 56... Kg7 {[%clk 0:01:44.8]} 57.
Kg5 {[%clk 0:00:57.8]} 57... Kg8 {[%clk 0:01:45.1]} 58. Kh5 {[%clk 0:00:58.2]}
58... Kg7 {[%clk 0:01:45.1]} 59. Kg5 {[%clk 0:00:59]} 1/2-1/2